fUSD/lending_fUSD_20250405
["ID","MTS","AMOUNT","RATE_DAILY","PERIOD"]
[357201908,1743891041931,-500.0,0.00030136,2]
[357201909,1743891041941,-513.06634644,0.00030136,2]
[357201910,1743891041951,-500.0,0.00030136,2]
[357201911,1743891041960,-500.0,0.00030136,2]
[357201912,1743891041969,-500.0,0.00030136,2]
[357201913,1743891041978,-520.85745833,0.00030136,2]
[357201914,1743891041987,-500.0,0.00030136,2]
[357201915,1743891041996,-508.16612048,0.00030136,2]
[357201916,1743891042005,-510.5081526,0.00030136,2]
[357201917,1743891042015,-266.35560013,0.00030136,2]
[357201918,1743891042024,-503.22547605,0.00030136,2]
[357201919,1743891042033,-500.0,0.00030136,2]
[357201920,1743891042042,-527.6968441,0.00030136,2]
[357201921,1743891042051,-500.0,0.00030136,2]
[357201922,1743891042060,-529.69339741,0.00030136,2]
[357201923,1743891042069,-508.24022279,0.00030136,2]
[357201924,1743891042077,-512.10120459,0.00030136,2]
[357201925,1743891042087,-500.0,0.00030136,2]
[357201926,1743891042095,-510.35941763,0.00030136,2]
[357201927,1743891042106,-500.0,0.00030136,2]
[357201928,1743891042115,-511.56769437,0.00030136,2]
[357201929,1743891042123,-516.5036726,0.00030136,2]
[357201930,1743891042132,-500.0,0.00030136,2]
[357201931,1743891042141,-541.07274743,0.00030136,2]
[357201932,1743891042150,-517.95936593,0.00030136,2]
[357201933,1743891042160,-528.91794588,0.00030136,2]
[357201934,1743891042169,-508.28439278,0.00030136,2]
[357201935,1743891042178,-519.89918623,0.00030136,2]
[357201936,1743891042187,-516.91437585,0.00030136,2]
[357201937,1743891042196,-536.71142715,0.00030136,2]
[357201938,1743891042205,-153.68996381,0.00030136,2]
[357201939,1743891042215,-511.63051385,0.00030136,2]
[357201940,1743891042223,-508.08011087,0.00030136,2]
[357201941,1743891042233,-5118.78448625,0.00030136,2]
[357201942,1743891042242,-555.91421778,0.00030136,2]
[357201943,1743891042251,-500.0,0.00030136,2]
[357201944,1743891042260,-526.78276193,0.00030136,2]
[357201945,1743891042269,-549.57163666,0.00030136,2]
[357201946,1743891042278,-508.37852574,0.00030136,2]
[357201947,1743891042287,-525.84150661,0.00030136,2]
[357201948,1743891042297,-500.0,0.00030136,2]
[357201949,1743891042306,-419.91186277,0.00030136,2]
[357201950,1743891042315,-527.63993777,0.00030136,2]
[357201951,1743891042324,-519.49296212,0.00030136,2]
[357201952,1743891042334,-518.8021181,0.00030136,2]
[357201953,1743891042343,-507.81346978,0.00030136,2]
[357201954,1743891042352,-509.41021025,0.00030136,2]
[357201955,1743891042362,-500.0,0.00030136,2]
[357201956,1743891042371,-529.7596559,0.00030136,2]
[357201957,1743891042380,-519.62145628,0.00030136,2]
[357201958,1743891042390,-510.65750852,0.00030136,2]
[357201959,1743891042399,-644.02114723,0.00030136,2]
[357201960,1743891042409,-522.12636492,0.00030136,2]
[357201961,1743891042418,-575.75501639,0.00030136,2]
[357201962,1743891042428,-513.21988476,0.00030136,2]
[357201963,1743891042437,-500.0,0.00030136,2]
[357201964,1743891042446,-500.0,0.00030136,2]
[357201965,1743891042457,-520.82207226,0.00030136,2]
[357201966,1743891042467,-528.25147061,0.00030136,2]
[357201967,1743891042476,-507.3694766,0.00030136,2]
[357201968,1743891042486,-510.5200197,0.00030136,2]
[357201969,1743891042495,-514.65431111,0.00030136,2]
[357201970,1743891042504,-500.0,0.00030136,2]
[357201971,1743891042514,-526.95907581,0.00030136,2]
[357201972,1743891042523,-500.0,0.00030136,2]
[357201973,1743891042532,-516.47407754,0.00030136,2]
[357201974,1743891042541,-521.27420829,0.00030136,2]
[357201975,1743891042551,-503.80974145,0.00030136,2]
[357201976,1743891042560,-504.38826734,0.00030136,2]
[357201977,1743891042569,-514.75698607,0.00030136,2]
[357201978,1743891042578,-500.0,0.00030136,2]
[357201979,1743891042587,-500.0,0.00030136,2]
[357201980,1743891042596,-539.51556691,0.00030136,2]
[357201981,1743891042605,-500.0,0.00030136,2]
[357201982,1743891042615,-500.0,0.00030136,2]
[357201983,1743891042624,-527.65764043,0.00030136,2]
[357201984,1743891042633,-500.0,0.00030136,2]
[357201985,1743891042642,-537.57619233,0.00030136,2]
[357201986,1743891042651,-513.71785263,0.00030136,2]
[357201987,1743891042665,-504.2529706,0.00030136,2]
[357201988,1743891042674,-500.0,0.00030136,2]
[357201989,1743891042682,-500.0,0.00030136,2]
[357201990,1743891042692,-511.11320989,0.00030136,2]
[357201991,1743891042703,-500.0,0.00030136,2]
[357201992,1743891042712,-576.65508759,0.00030136,2]
[357201993,1743891042721,-532.85084045,0.00030136,2]
[357201994,1743891042730,-500.0,0.00030136,2]
[357201995,1743891042741,-542.59984048,0.00030136,2]
[357201996,1743891042751,-532.88741414,0.00030136,2]
[357201997,1743891042760,-500.0,0.00030136,2]
[357201998,1743891042768,-525.30578907,0.00030136,2]
[357201999,1743891042778,-349.10040878,0.00030136,2]
[357202000,1743891042787,-500.0,0.00030136,2]
[357202001,1743891042796,-513.22466243,0.00030136,2]
[357202002,1743891042805,-546.57010479,0.00030136,2]
[357202003,1743891042815,-508.48356023,0.00030136,2]
[357202004,1743891042823,-521.5348882,0.00030136,2]
[357202005,1743891042832,-500.0,0.00030136,2]
[357202006,1743891042842,-509.89622402,0.00030136,2]
[357202007,1743891042851,-500.0,0.00030136,2]
[357202008,1743891042860,-500.0,0.00030136,2]
[357202009,1743891042869,-500.0,0.00030136,2]
[357202010,1743891042879,-500.0,0.00030136,2]
[357202011,1743891042888,-510.84739831,0.00030136,2]
[357202012,1743891042897,-500.0,0.00030136,2]
[357202013,1743891042906,-500.0,0.00030136,2]
[357202014,1743891042915,-500.0,0.00030136,2]
[357202015,1743891042924,-538.77716226,0.00030136,2]
[357202016,1743891042933,-500.0,0.00030136,2]
[357202017,1743891042942,-543.52657837,0.00030136,2]
[357202018,1743891042951,-500.0,0.00030136,2]
[357202019,1743891042960,-529.20585828,0.00030136,2]
[357202020,1743891042969,-441.66614877,0.00030136,2]
[357202021,1743891042979,-292.87577192,0.00030136,2]
[357202022,1743891042988,-526.21053205,0.00030136,2]
[357202023,1743891042997,-534.70737218,0.00030136,2]
[357202024,1743891043007,-505.35427719,0.00030136,2]
[357202025,1743891043016,-500.0,0.00030136,2]
[357202026,1743891043025,-500.0,0.00030136,2]
[357202027,1743891043035,-564.82785834,0.00030136,2]
[357202028,1743891043044,-500.0,0.00030136,2]
[357202029,1743891043053,-500.0,0.00030136,2]
[357202030,1743891043063,-500.0,0.00030136,2]
[357202031,1743891043072,-338.77764217,0.00030136,2]
[357202032,1743891043081,-500.0,0.00030136,2]
[357202033,1743891043090,-500.0,0.00030136,2]
[357202034,1743891043100,-500.0,0.00030136,2]
[357202035,1743891043109,-500.0,0.00030136,2]
[357202036,1743891043119,-500.0,0.00030136,2]
[357202037,1743891043129,-500.0,0.00030136,2]
[357202038,1743891043140,-500.0,0.00030136,2]
[357202039,1743891043149,-412.95455441,0.00030136,2]
[357202041,1743891043159,-500.0,0.00030136,2]
[357202044,1743891043168,-500.0,0.00030136,2]
[357202046,1743891043178,-500.0,0.00030136,2]
[357202048,1743891043187,-500.0,0.00030136,2]
[357202050,1743891043195,-217.36633884,0.00030136,2]
[357202051,1743891043205,-500.0,0.00030136,2]
[357202052,1743891043214,-6618.83,0.00030136,2]
[357202053,1743891043223,-500.0,0.00030136,2]
[357202054,1743891043232,-173.52936099,0.00030136,2]
[357202055,1743891043242,-500.0,0.00030136,2]
[357202056,1743891043375,-500.0,0.00030136,2]
[357202057,1743891043385,-500.0,0.00030136,2]
[357202058,1743891043395,-215.68932741,0.00030136,2]
[357202059,1743891043405,-508.79568796,0.00030136,2]
[357202060,1743891043414,-500.0,0.00030136,2]
[357202061,1743891043424,-353.5716189,0.00030136,2]
[357202062,1743891043433,-500.0,0.00030136,2]
[357202063,1743891043443,-500.0,0.00030136,2]
[357202064,1743891043452,-506.78555223,0.00030136,2]
[357202065,1743891043461,-537.22,0.00030136,2]
[357202066,1743891043471,-506.3536027,0.00030136,2]
[357202067,1743891043480,-508.65534565,0.00030136,2]
[357202068,1743891043489,-500.0,0.00030136,2]
[357202069,1743891043499,-509.0912182,0.00030136,2]
[357202070,1743891043508,-502.95771583,0.00030136,2]
[357202071,1743891043517,-574.38,0.00030136,2]
[357202072,1743891043526,-509.17372245,0.00030136,2]
[357202073,1743891043535,-549.15,0.00030136,2]
[357202074,1743891043544,-4074.96,0.00030136,2]
[357202075,1743891043553,-511.41685541,0.00030136,2]
[357202076,1743891043563,-358.8342151,0.00030136,2]
[357202077,1743891043572,-500.0,0.00030136,2]
[357202078,1743891043581,-500.0,0.00030136,2]
[357202079,1743891043590,-500.0,0.00030136,2]
[357202080,1743891043599,-502.57859161,0.00030136,2]
[357202081,1743891043610,-1831.85,0.00030136,2]
[357202082,1743891043619,-500.0,0.00030136,2]
[357202084,1743891043629,-500.0,0.00030136,2]
[357202086,1743891043638,-513.90548066,0.00030136,2]
[357202088,1743891043647,-506.42389316,0.00030136,2]
[357202090,1743891043656,-978.64,0.00030136,2]
[357202092,1743891043669,-554.6649509,0.00030136,2]
[357202094,1743891043678,-488.05094689,0.00030136,2]
[357202095,1743891043687,-500.0,0.00030136,2]
[357202096,1743891043696,-513.08928517,0.00030136,2]
[357202097,1743891043707,-504.05358389,0.00030136,2]
[357202098,1743891043715,-500.0,0.00030136,2]
[357202099,1743891043724,-500.0,0.00030136,2]
[357202100,1743891043734,-521.40351605,0.00030136,2]
[357202101,1743891043745,-521.8352907,0.00030136,2]
[357202102,1743891043754,-500.0,0.00030136,2]
[357202103,1743891043764,-2087.13,0.00030136,2]
[357202104,1743891043773,-7919.85,0.00030136,2]
[357202105,1743891043783,-520.3606895,0.00030136,2]
[357202106,1743891043792,-533.13876539,0.00030136,2]
[357202107,1743891043801,-517.87515484,0.00030136,2]
[357202108,1743891043811,-513.88239024,0.00030136,2]
[357202109,1743891043820,-500.0,0.00030136,2]
[357202110,1743891043830,-500.0,0.00030136,2]
[357202111,1743891043840,-514.7298015,0.00030136,2]
[357202112,1743891043850,-500.0,0.00030136,2]
[357202113,1743891043860,-500.0,0.00030136,2]
[357202114,1743891043869,-500.0,0.00030136,2]
[357202115,1743891043879,-531.73061738,0.00030136,2]
[357202116,1743891043889,-520.82849019,0.00030136,2]
[357202117,1743891043898,-269.02595406,0.00030136,2]
[357202118,1743891043907,-500.0,0.00030136,2]
[357202119,1743891043917,-240.70161286,0.00030136,2]
[357202120,1743891043927,-500.0,0.00030136,2]
[357202121,1743891043938,-522.31240744,0.00030136,2]
[357202122,1743891043948,-598.96873022,0.00030136,2]
[357202123,1743891043957,-509.71455768,0.00030136,2]
[357202124,1743891043967,-508.86409943,0.00030136,2]
[357202125,1743891043977,-521.84319868,0.00030136,2]
[357202126,1743891043986,-500.0,0.00030136,2]
[357202127,1743891043995,-500.0,0.00030136,2]
[357202128,1743891044005,-500.0,0.00030136,2]
[357202129,1743891044014,-523.44747995,0.00030136,2]
[357202130,1743891044024,-522.57183491,0.00030136,2]
[357202131,1743891044033,-512.90523545,0.00030136,2]
[357202132,1743891044043,-500.0,0.00030136,2]
[357202133,1743891044052,-1172.0,0.00030136,2]
[357202134,1743891044062,-500.0,0.00030136,2]
[357202135,1743891044071,-500.0,0.00030136,2]
[357202136,1743891044080,-500.0,0.00030136,2]
[357202137,1743891044089,-500.0,0.00030136,2]
[357202138,1743891044098,-503.45629659,0.00030136,2]
[357202139,1743891044108,-505.91932898,0.00030136,2]
[357202140,1743891044117,-522.68218665,0.00030136,2]
[357202141,1743891044128,-506.6540077,0.00030136,2]
[357202142,1743891044138,-500.0,0.00030136,2]
[357202143,1743891044148,-500.0,0.00030136,2]
[357202144,1743891044157,-500.0,0.00030136,2]
[357202145,1743891044167,-500.0,0.00030136,2]
[357202146,1743891044176,-505.27538908,0.00030136,2]
[357202147,1743891044186,-625.85676983,0.00030136,2]
[357202148,1743891044195,-590.0,0.00030137,2]
[357202149,1743891044204,-1712.00457519,0.000303,2]
[357202150,1743891044214,-349.01,0.0003031,2]
[357202151,1743891044222,-2363.7449,0.0003031,2]
[357202152,1743891044231,-26732.0189499,0.00030389,2]
[357202153,1743891044240,-8910.67298331,0.0003039,2]
[357202154,1743891044249,-891.83,0.0003039,2]
[357202155,1743891044258,-80196.0568498,0.00030399,2]
[357202156,1743891044267,-35642.6919332,0.000304,2]
[357202157,1743891044277,-29076.0458232,0.000304,2]
[357202158,1743891044287,-500.0,0.00030409,2]
[357202159,1743891044296,-513.8293806,0.00030409,2]
[357202160,1743891044305,-500.0,0.00030409,2]
[357202161,1743891044315,-500.0,0.00030409,2]
[357202162,1743891044324,-500.0,0.00030409,2]
[357202163,1743891044333,-510.83839953,0.00030409,2]
[357202164,1743891044343,-505.18298115,0.00030409,2]
[357202165,1743891044352,-519.80364516,0.00030409,2]
[357202166,1743891044363,-511.40677429,0.00030409,2]
[357202167,1743891044373,-507.60554518,0.00030409,2]
[357202168,1743891044383,-500.0,0.00030409,2]
[357202169,1743891044393,-513.37176793,0.00030409,2]
[357202170,1743891044403,-509.13340703,0.00030409,2]
[357202171,1743891044412,-504.14684809,0.00030409,2]
[357202172,1743891044422,-512.60958313,0.00030409,2]
[357202173,1743891044431,-506.54242806,0.00030409,2]
[357202174,1743891044441,-502.95700431,0.00030409,2]
[357202175,1743891044450,-506.67798785,0.00030409,2]
[357202176,1743891044460,-503.91038197,0.00030409,2]
[357202177,1743891044469,-626.86963971,0.00030409,2]
[357202178,1743891044479,-506.31270859,0.00030409,2]
[357202179,1743891044488,-504.8755743,0.00030409,2]
[357202180,1743891044498,-540.82870489,0.00030409,2]
[357202181,1743891044507,-500.0,0.00030409,2]
[357202182,1743891044517,-506.81106009,0.00030409,2]
[357202183,1743891044526,-511.71225205,0.00030409,2]
[357202184,1743891044536,-526.0573389,0.00030409,2]
[357202185,1743891044546,-503.08115151,0.00030409,2]
[357202186,1743891044555,-500.0,0.00030409,2]
[357202187,1743891044566,-500.0,0.00030409,2]
[357202188,1743891044575,-500.0,0.00030409,2]
[357202189,1743891044585,-500.0,0.00030409,2]
[357202190,1743891044594,-509.35636741,0.00030409,2]
[357202191,1743891044605,-500.0,0.00030409,2]
[357202192,1743891044615,-526.98646411,0.00030409,2]
[357202193,1743891044624,-513.98791306,0.00030409,2]
[357202194,1743891044634,-544.97412184,0.00030409,2]
[357202195,1743891044643,-500.0,0.00030409,2]
[357202196,1743891044653,-500.0,0.00030409,2]
[357202197,1743891044665,-507.23948785,0.00030409,2]
[357202198,1743891044674,-500.0,0.00030409,2]
[357202199,1743891044685,-501.98182992,0.00030409,2]
[357202200,1743891044695,-500.0,0.00030409,2]
[357202201,1743891044705,-500.0,0.00030409,2]
[357202202,1743891044715,-507.36701892,0.00030409,2]
[357202203,1743891044725,-565.4997888,0.00030409,2]
[357202204,1743891044734,-500.0,0.00030409,2]
[357202205,1743891044745,-505.86729759,0.00030409,2]
[357202206,1743891044755,-500.0,0.00030409,2]
[357202207,1743891044765,-500.0,0.00030409,2]
[357202208,1743891044775,-500.0,0.00030409,2]
[357202209,1743891044785,-537.53331197,0.00030409,2]
[357202210,1743891044794,-520.43077892,0.00030409,2]
[357202211,1743891044804,-500.0,0.00030409,2]
[357202212,1743891044814,-561.00454071,0.00030409,2]
[357202213,1743891044824,-505.89751298,0.00030409,2]
[357202214,1743891044834,-557.6491713,0.00030409,2]
[357202215,1743891044843,-500.0,0.00030409,2]
[357202216,1743891044854,-540.26251611,0.00030409,2]
[357202217,1743891044864,-500.0,0.00030409,2]
[357202218,1743891044873,-504.39180109,0.00030409,2]
[357202219,1743891044883,-507.76963342,0.00030409,2]
[357202220,1743891044892,-568.75309296,0.00030409,2]
[357202221,1743891044902,-502.81017383,0.00030409,2]
[357202222,1743891044912,-555.8871105,0.00030409,2]
[357202223,1743891044922,-545.33799613,0.00030409,2]
[357202224,1743891044932,-505.9817568,0.00030409,2]
[357202225,1743891044941,-503.75596813,0.00030409,2]
[357202226,1743891044950,-506.5581849,0.00030409,2]
[357202227,1743891044959,-500.0,0.00030409,2]
[357202228,1743891044968,-575.55177325,0.00030409,2]
[357202229,1743891044978,-509.02190301,0.00030409,2]
[357202230,1743891044987,-173.51913702,0.00030409,2]
[357202231,1743891044996,-506.06663659,0.00030409,2]
[357202232,1743891045006,-578.20378569,0.00030409,2]
[357202233,1743891045015,-500.0,0.00030409,2]
[357202234,1743891045024,-609.32589591,0.00030409,2]
[357202235,1743891045033,-507.8572718,0.00030409,2]
[357202236,1743891045043,-560.78729335,0.00030409,2]
[357202237,1743891045052,-500.0,0.00030409,2]
[357202238,1743891045061,-617.59858008,0.00030409,2]
[357202239,1743891045070,-507.30171577,0.00030409,2]
[357202240,1743891045080,-500.0,0.00030409,2]
[357202241,1743891045089,-545.71774998,0.00030409,2]
[357202242,1743891045099,-500.0,0.00030409,2]
[357202243,1743891045108,-512.52824009,0.00030409,2]
[357202244,1743891045118,-508.27144037,0.00030409,2]
[357202245,1743891045127,-500.0,0.00030409,2]
[357202246,1743891045136,-538.57985355,0.00030409,2]
[357202247,1743891045145,-505.06393486,0.00030409,2]
[357202248,1743891045154,-508.68354348,0.00030409,2]
[357202249,1743891045164,-500.0,0.00030409,2]
[357202250,1743891045173,-514.53213564,0.00030409,2]
[357202251,1743891045182,-500.0,0.00030409,2]
[357202252,1743891045191,-500.0,0.00030409,2]
[357202253,1743891045200,-505.49200236,0.00030409,2]
[357202254,1743891045210,-502.25772223,0.00030409,2]
[357202255,1743891045219,-511.47505377,0.00030409,2]
[357202256,1743891045228,-500.0,0.00030409,2]
[357202257,1743891045237,-500.0,0.00030409,2]
[357202258,1743891045246,-500.0,0.00030409,2]
[357202259,1743891045256,-500.0,0.00030409,2]
[357202260,1743891045265,-500.0,0.00030409,2]
[357202261,1743891045274,-500.0,0.00030409,2]
[357202262,1743891045283,-502.90780583,0.00030409,2]
[357202263,1743891045292,-505.095952,0.00030409,2]
[357202264,1743891045301,-500.0,0.00030409,2]
[357202265,1743891045310,-531.35835428,0.00030409,2]
[357202266,1743891045319,-500.0,0.00030409,2]
[357202267,1743891045328,-481.02846417,0.00030409,2]
[357202268,1743891045338,-500.0,0.00030409,2]
[357202269,1743891045347,-508.54386064,0.00030409,2]
[357202270,1743891045356,-503.67544351,0.00030409,2]
[357202271,1743891045365,-500.0,0.00030409,2]
[357202272,1743891045374,-500.0,0.00030409,2]
[357202273,1743891045383,-508.07465089,0.00030409,2]
[357202274,1743891045393,-500.0,0.00030409,2]
[357202275,1743891045403,-500.0,0.00030409,2]
[357202276,1743891045411,-515.62440317,0.00030409,2]
[357202277,1743891045420,-500.0,0.00030409,2]
[357202278,1743891045430,-500.0,0.00030409,2]
[357202279,1743891045439,-502.59980511,0.00030409,2]
[357202280,1743891045448,-500.0,0.00030409,2]
[357202281,1743891045457,-500.0,0.00030409,2]
[357202282,1743891045467,-500.0,0.00030409,2]
[357202283,1743891045478,-500.0,0.00030409,2]
[357202284,1743891045488,-403.22168608,0.00030409,2]
[357202285,1743891045498,-500.0,0.00030409,2]
[357202286,1743891045508,-500.0,0.00030409,2]
[357202287,1743891045518,-500.0,0.00030409,2]
[357202288,1743891045527,-500.0,0.00030409,2]
[357202289,1743891045536,-525.25055301,0.00030409,2]
[357202290,1743891045545,-500.0,0.00030409,2]
[357202291,1743891045554,-500.0,0.00030409,2]
[357202292,1743891045563,-500.0,0.00030409,2]
[357202293,1743891045572,-500.0,0.00030409,2]
[357202294,1743891045581,-500.0,0.00030409,2]
[357202295,1743891045590,-511.57825979,0.00030409,2]
[357202296,1743891045600,-500.0,0.00030409,2]
[357202297,1743891045609,-500.0,0.00030409,2]
[357202298,1743891045619,-500.0,0.00030409,2]
[357202299,1743891045628,-500.0,0.00030409,2]
[357202300,1743891045638,-500.0,0.00030409,2]
[357202301,1743891045647,-500.0,0.00030409,2]
[357202302,1743891045656,-500.0,0.00030409,2]
[357202303,1743891045671,-500.0,0.00030409,2]
[357202304,1743891045680,-500.0,0.00030409,2]
[357202305,1743891045689,-500.0,0.00030409,2]
[357202306,1743891045698,-500.0,0.00030409,2]
[357202307,1743891045709,-500.0,0.00030409,2]
[357202308,1743891045718,-505.83241189,0.00030409,2]
[357202309,1743891045727,-500.0,0.00030409,2]
[357202310,1743891045737,-500.0,0.00030409,2]
[357202311,1743891045746,-500.0,0.00030409,2]
[357202312,1743891045755,-550.53946758,0.00030409,2]
[357202313,1743891045764,-500.0,0.00030409,2]
[357202314,1743891045773,-500.0,0.00030409,2]
[357202315,1743891045783,-500.0,0.00030409,2]
[357202316,1743891045792,-500.0,0.00030409,2]
[357202317,1743891045801,-500.0,0.00030409,2]
[357202318,1743891045811,-500.0,0.00030409,2]
[357202319,1743891045820,-500.0,0.00030409,2]
[357202320,1743891045829,-500.0,0.00030409,2]
[357202321,1743891045838,-500.0,0.00030409,2]
[357202322,1743891045847,-500.0,0.00030409,2]
[357202323,1743891045857,-500.0,0.00030409,2]
[357202324,1743891045867,-500.0,0.00030409,2]
[357202325,1743891045876,-500.0,0.00030409,2]
[357202326,1743891045886,-503.02119422,0.00030409,2]
[357202327,1743891045895,-517.104436,0.00030409,2]
[357202328,1743891045904,-500.0,0.00030409,2]
[357202329,1743891045913,-500.0,0.00030409,2]
[357202330,1743891045923,-500.0,0.00030409,2]
[357202331,1743891045932,-500.0,0.00030409,2]
[357202332,1743891045941,-508.33620868,0.00030409,2]
[357202333,1743891045951,-520.24134621,0.00030409,2]
[357202334,1743891045960,-500.0,0.00030409,2]
[357202335,1743891045969,-500.0,0.00030409,2]
[357202336,1743891045978,-500.0,0.00030409,2]
[357202337,1743891045987,-500.0,0.00030409,2]
[357202338,1743891045996,-169.40311619,0.00030409,2]
[357202339,1743891046006,-500.0,0.00030409,2]
[357202340,1743891046015,-500.0,0.00030409,2]
[357202341,1743891046024,-500.0,0.00030409,2]
[357202342,1743891046033,-516.09266075,0.00030409,2]
[357202343,1743891046042,-500.0,0.00030409,2]
[357202344,1743891046051,-500.0,0.00030409,2]
[357202345,1743891046061,-500.0,0.00030409,2]
[357202346,1743891046070,-500.0,0.00030409,2]
[357202347,1743891046079,-500.0,0.00030409,2]
[357202348,1743891046088,-500.0,0.00030409,2]
[357202349,1743891046097,-506.08294856,0.00030409,2]
[357202350,1743891046107,-500.0,0.00030409,2]
[357202351,1743891046117,-500.0,0.00030409,2]
[357202353,1743891046126,-500.0,0.00030409,2]
[357202354,1743891046137,-504.19610242,0.00030409,2]
[357202355,1743891046147,-500.0,0.00030409,2]
[357202356,1743891046156,-509.70303458,0.00030409,2]
[357202357,1743891046165,-250.00777892,0.00030409,2]
[357202358,1743891046175,-500.0,0.00030409,2]
[357202359,1743891046185,-547.48290715,0.00030409,2]
[357202360,1743891046194,-500.0,0.00030409,2]
[357202361,1743891046203,-500.0,0.00030409,2]
[357202362,1743891046212,-507.79037273,0.00030409,2]
[357202363,1743891046221,-505.16843428,0.00030409,2]
[357202364,1743891046231,-504.45535021,0.00030409,2]
[357202365,1743891046240,-505.86040666,0.00030409,2]
[357202366,1743891046250,-500.0,0.00030409,2]
[357202367,1743891046259,-513.07251488,0.00030409,2]
[357202368,1743891046268,-575.13610127,0.00030409,2]
[357202369,1743891046277,-507.1141183,0.00030409,2]
[357202370,1743891046287,-500.0,0.00030409,2]
[357202371,1743891046297,-503.6951467,0.00030409,2]
[357202372,1743891046306,-500.0,0.00030409,2]
[357202373,1743891046315,-500.0,0.00030409,2]
[357202374,1743891046325,-511.77049812,0.00030409,2]
[357202375,1743891046335,-500.0,0.00030409,2]
[357202376,1743891046456,-509.64809832,0.00030409,2]
[357202377,1743891046467,-500.0,0.00030409,2]
[357202378,1743891046476,-335.73737279,0.00030409,2]
[357202379,1743891046486,-531.39474744,0.00030409,2]
[357202380,1743891046495,-500.0,0.00030409,2]
[357202381,1743891046504,-500.0,0.00030409,2]
[357202382,1743891046514,-500.0,0.00030409,2]
[357202383,1743891046523,-500.0,0.00030409,2]
[357202384,1743891046535,-500.0,0.00030409,2]
[357202385,1743891046544,-500.0,0.00030409,2]
[357202386,1743891046554,-500.0,0.00030409,2]
[357202387,1743891046563,-500.0,0.00030409,2]
[357202388,1743891046572,-500.0,0.00030409,2]
[357202389,1743891046581,-500.0,0.00030409,2]
[357202390,1743891046590,-500.0,0.00030409,2]
[357202391,1743891046600,-500.0,0.00030409,2]
[357202392,1743891046609,-500.0,0.00030409,2]
[357202393,1743891046618,-500.0,0.00030409,2]
[357202394,1743891046628,-524.12500122,0.00030409,2]
[357202395,1743891046637,-500.0,0.00030409,2]
[357202396,1743891046646,-500.0,0.00030409,2]
[357202397,1743891046657,-500.0,0.00030409,2]
[357202398,1743891046667,-500.0,0.00030409,2]
[357202399,1743891046676,-500.0,0.00030409,2]
[357202400,1743891046686,-507.7714071,0.00030409,2]
[357202401,1743891046695,-500.0,0.00030409,2]
[357202402,1743891046706,-500.0,0.00030409,2]
[357202403,1743891046715,-500.0,0.00030409,2]
[357202404,1743891046725,-448.58537507,0.00030409,2]
[357202405,1743891046735,-500.0,0.00030409,2]
[357202407,1743891046744,-500.0,0.00030409,2]
[357202408,1743891046754,-500.0,0.00030409,2]
[357202409,1743891046764,-500.0,0.00030409,2]
[357202410,1743891046774,-500.0,0.00030409,2]
[357202411,1743891046784,-503.64313504,0.00030409,2]
[357202412,1743891046793,-521.57626164,0.00030409,2]
[357202413,1743891046803,-500.0,0.00030409,2]
[357202415,1743891046813,-512.79770847,0.00030409,2]
[357202416,1743891046823,-500.0,0.00030409,2]
[357202417,1743891046833,-500.0,0.00030409,2]
[357202418,1743891046842,-506.01340344,0.00030409,2]
[357202419,1743891046851,-500.0,0.00030409,2]
[357202420,1743891046861,-507.17174074,0.00030409,2]
[357202421,1743891046871,-500.0,0.00030409,2]
[357202422,1743891046881,-502.44031607,0.00030409,2]